bitfinex-derivatives/quotes_BTCF0:USTF0_20250129
["timestamp","ask_amount","ask_price","bid_price","bid_amount"]
[1738146494251,0.74729103,102610.0,102580.0,0.0338]
[1738146494563,0.2906971,102590.0,102580.0,0.0338]
[1738146494755,0.04792349,102590.0,102580.0,0.0338]
[1738146494959,0.04792349,102590.0,102580.0,0.589657]
[1738146495864,0.04792349,102590.0,102580.0,0.590657]
[1738146497466,0.31078262,102590.0,102580.0,0.590657]
[1738146498456,0.32822083,102590.0,102580.0,0.590657]
[1738146501367,0.37605038,102590.0,102580.0,0.590657]
[1738146502161,0.37605038,102590.0,102580.0,0.229857]
[1738146502968,0.37605038,102590.0,102580.0,0.3956]
[1738146503571,0.57108638,102590.0,102580.0,0.0348]
[1738146506377,0.42505353,102590.0,102580.0,0.0348]
[1738146507571,0.23001753,102590.0,102580.0,0.0348]
[1738146507772,0.42505553,102590.0,102580.0,0.0348]
[1738146511375,0.45695553,102590.0,102580.0,0.0348]
[1738146517683,0.34012925,102590.0,102580.0,0.0348]
[1738146521098,0.4861621,102590.0,102580.0,0.0348]
[1738146521395,0.21139455,102590.0,102580.0,0.3956]
[1738146521695,0.2592241,102590.0,102580.0,0.3956]
[1738146523689,0.2592241,102590.0,102580.0,0.590657]
[1738146524497,0.21139455,102590.0,102580.0,0.590657]
[1738146524796,0.2592241,102590.0,102580.0,0.590657]
[1738146526499,0.21139455,102590.0,102580.0,0.590657]
[1738146528490,0.43452648,102590.0,102580.0,0.590657]
[1738146529399,0.38669693,102590.0,102580.0,0.590657]
[1738146534301,0.38669693,102590.0,102580.0,0.229857]
[1738146534494,0.43452648,102590.0,102580.0,0.590657]
[1738146535402,0.38669693,102590.0,102580.0,0.590657]
[1738146535702,0.24066408,102590.0,102580.0,0.590657]
[1738146538603,0.0653617,102590.0,102580.0,0.590657]
[1738146541403,0.01753215,102590.0,102580.0,0.63848655]
[1738146541796,0.0653617,102590.0,102580.0,0.63848655]
[1738146542695,0.0653617,102590.0,102580.0,0.590657]
[1738146543104,0.21163921,102590.0,102580.0,0.590657]
[1738146546402,0.15304119,102590.0,102580.0,0.82419004]
[1738146546809,0.15304119,102590.0,102580.0,0.86686715]
[1738146552002,0.39590874,102590.0,102580.0,0.82419004]
[1738146552310,0.34807919,102590.0,102580.0,0.82419004]
[1738146552713,0.15304119,102590.0,102580.0,0.82419004]
[1738146553708,0.26994717,102590.0,102580.0,0.590657]
[1738146555908,0.26994717,102590.0,102580.0,0.229857]
[1738146556109,0.26994717,102590.0,102580.0,0.590657]
[1738146560015,0.30204717,102590.0,102580.0,0.590657]
[1738146560515,0.57881472,102590.0,102580.0,0.3618]
[1738146563021,0.63741274,102590.0,102580.0,0.3618]
[1738146568627,0.58958319,102590.0,102580.0,0.3618]
[1738146570030,0.63741274,102590.0,102580.0,0.3618]
[1738146570229,0.63741274,102590.0,102580.0,0.001]
[1738146570426,0.99821274,102590.0,102580.0,0.001]
[1738146572928,0.91033163,102590.0,102580.0,0.001]
[1738146581635,0.54953163,102590.0,102580.0,0.001]
[1738146581838,0.91033163,102590.0,102580.0,0.001]
[1738146592939,0.91033163,102590.0,102570.0,0.03420842]
[1738146592940,0.195057,102580.0,102570.0,0.00014613]
[1738146593137,0.09573451,102580.0,102570.0,0.00014613]
[1738146595449,0.09573451,102580.0,102570.0,0.36094613]
[1738146595852,0.09573451,102580.0,102570.0,0.36194613]
[1738146597351,0.24187683,102580.0,102570.0,0.36194613]
[1738146597650,0.41717921,102580.0,102570.0,0.36194613]
[1738146599453,0.36934966,102580.0,102570.0,0.36194613]
[1738146600341,0.19404728,102580.0,102570.0,0.55702213]
[1738146600646,0.14621773,102580.0,102570.0,0.59970302]
[1738146601451,0.19404728,102580.0,102570.0,0.59970302]
[1738146601953,0.24187683,102580.0,102570.0,0.59970302]
[1738146602452,0.43693383,102580.0,102570.0,0.00114613]
[1738146602851,0.43693383,102580.0,102570.0,0.03320939]
[1738146603850,0.43693383,102580.0,102570.0,0.00114613]
[1738146604158,0.43693383,102580.0,102570.0,0.40977079]
[1738146604453,0.43693383,102580.0,102570.0,0.45245262]
[1738146604643,0.43693383,102580.0,102570.0,0.81325262]
[1738146604958,0.43693383,102580.0,102570.0,0.45245262]
[1738146605153,0.43693383,102580.0,102570.0,0.40977079]
[1738146605856,0.24187683,102580.0,102570.0,0.40977079]
[1738146606259,0.24187683,102580.0,102570.0,1.00832886]
[1738146606458,0.24187683,102580.0,102570.0,0.60484679]
[1738146606754,0.24187683,102580.0,102570.0,0.4418491]
[1738146607148,0.41717921,102580.0,102570.0,0.03322444]
[1738146608557,0.41717921,102580.0,102570.0,0.03322767]
[1738146608858,0.41717921,102580.0,102570.0,0.00114613]
[1738146611062,0.27103689,102580.0,102570.0,0.00114613]
[1738146611661,0.27103689,102580.0,102570.0,0.19622213]
[1738146611864,0.22320734,102580.0,102570.0,0.19622213]
[1738146612162,0.22320734,102580.0,102570.0,0.55702213]
[1738146612364,0.17537779,102580.0,102570.0,0.60485168]
[1738146612554,0.17537779,102580.0,102570.0,0.6796052]
[1738146613053,0.4855158,102600.0,102590.0,0.195038]
[1738146613363,0.4855158,102600.0,102590.0,0.555838]
[1738146613567,0.4855158,102600.0,102590.0,0.58789524]
[1738146614066,0.48555611,102600.0,102590.0,0.58789524]
[1738146614448,0.48555611,102600.0,102590.0,0.555838]
[1738146614657,0.48555611,102600.0,102590.0,0.58794029]
[1738146614959,0.48555611,102600.0,102590.0,0.58793929]
[1738146615461,0.42013502,102600.0,102590.0,0.58793929]
[1738146615661,0.42213502,102600.0,102590.0,0.58793929]
[1738146616264,0.42213502,102600.0,102590.0,0.555838]
[1738146616767,0.46996457,102600.0,102590.0,0.555838]
[1738146618960,0.31477829,102600.0,102590.0,0.195038]
[1738146619170,0.31477829,102600.0,102590.0,0.555838]
[1738146623472,0.22719146,102600.0,102590.0,0.555838]
[1738146627663,0.37316951,102600.0,102590.0,0.555838]
[1738146631472,0.22719146,102600.0,102590.0,0.555838]
[1738146632766,0.17936191,102600.0,102590.0,0.555838]
[1738146634274,0.13153236,102600.0,102590.0,0.60366755]
[1738146634474,0.13153236,102600.0,102590.0,0.99653426]
[1738146634673,0.13153236,102600.0,102590.0,1.03920455]
[1738146636583,0.17936191,102600.0,102590.0,1.03920455]
[1738146638371,0.06257947,102600.0,102590.0,1.21428132]
[1738146638867,0.01474992,102600.0,102590.0,1.21428132]
[1738146641880,0.01474992,102600.0,102590.0,1.31980796]
[1738146642083,0.25213931,102610.0,102600.0,0.195019]
[1738146642376,0.25213931,102610.0,102600.0,0.67574855]
[1738146642572,0.20430976,102610.0,102600.0,0.70884855]
[1738146642775,0.21579122,102610.0,102600.0,0.70884855]
[1738146643081,0.21579122,102610.0,102600.0,0.78357477]
[1738146643277,0.21779122,102610.0,102600.0,0.78457477]
[1738146643482,0.26562077,102610.0,102600.0,0.73674522]
[1738146646488,0.06131101,102610.0,102600.0,0.91182199]
[1738146647287,0.06131101,102610.0,102600.0,0.86915782]
[1738146650490,0.06131101,102610.0,102600.0,1.22995782]
[1738146654384,0.06131101,102610.0,102600.0,1.19789577]
[1738146655491,0.06131101,102610.0,102600.0,1.27261498]
[1738146657193,0.06131101,102610.0,102600.0,1.19789577]
[1738146657485,0.06131101,102610.0,102600.0,1.09269577]
[1738146657486,0.10914056,102610.0,102600.0,1.09269577]
[1738146657791,0.37424056,102610.0,102600.0,0.73189577]
[1738146658792,0.40734056,102610.0,102600.0,0.37109577]
[1738146659490,0.16451101,102610.0,102600.0,0.73189577]
[1738146660688,0.36882077,102610.0,102600.0,0.556819]
[1738146660992,0.33572077,102610.0,102600.0,0.556819]
[1738146662194,0.33572077,102610.0,102600.0,0.58892101]
[1738146662591,0.33572077,102610.0,102600.0,0.556819]
[1738146663199,0.33572077,102610.0,102600.0,0.58892824]
[1738146664990,0.3941715,102610.0,102600.0,0.58892824]
[1738146665697,0.3941715,102610.0,102600.0,0.22812824]
[1738146665901,0.3941715,102610.0,102600.0,0.58892824]
[1738146667193,0.3941715,102610.0,102600.0,0.556819]
[1738146668299,0.3941715,102610.0,102600.0,0.73189577]
[1738146672097,0.44200105,102610.0,102600.0,0.76402851]
[1738146672501,0.3941715,102610.0,102600.0,0.76402851]
[1738146675095,0.27738906,102610.0,102600.0,0.58895174]
[1738146676106,0.27738906,102610.0,102600.0,0.22815174]
[1738146676304,0.27738906,102610.0,102600.0,0.58895174]
[1738146677212,0.27738906,102610.0,102600.0,0.556819]
[1738146677910,0.47238906,102610.0,102600.0,0.001]
[1738146678614,0.88101861,102610.0,102600.0,0.001]
[1738146681416,0.52021861,102610.0,102600.0,0.001]
[1738146681615,0.88101861,102610.0,102600.0,0.001]
[1738146682217,0.195019,102600.0,102590.0,0.76955594]
[1738146682520,0.3265781,102600.0,102590.0,0.76955594]
[1738146683221,0.3265781,102600.0,102590.0,0.36094613]
[1738146686921,0.47262643,102600.0,102590.0,0.36094613]
[1738146688122,0.83342643,102600.0,102590.0,0.00014613]
[1738146690624,0.47262643,102600.0,102590.0,0.00014613]
[1738146690827,0.83342643,102600.0,102590.0,0.00014613]
[1738146693124,0.79752643,102600.0,102590.0,0.00014613]
[1738146693622,0.38889688,102600.0,102590.0,0.36094613]
[1738146694127,0.56398024,102600.0,102590.0,0.36094613]
[1738146694528,0.61180979,102600.0,102590.0,0.36094613]
[1738146694728,0.56398024,102600.0,102590.0,0.36094613]
[1738146696428,0.61180979,102600.0,102590.0,0.36094613]
[1738146697026,0.41679079,102600.0,102590.0,0.36094613]
[1738146697331,0.36896124,102600.0,102590.0,0.55598413]
[1738146697521,0.31068199,102600.0,102590.0,0.60381368]
[1738146697721,0.31068199,102600.0,102590.0,0.55598413]
[1738146698330,0.31068199,102600.0,102590.0,0.57110507]
[1738146700435,0.31068199,102600.0,102590.0,0.55598413]
[1738146702230,0.31068199,102600.0,102590.0,0.19518413]
[1738146702532,0.31068199,102600.0,102590.0,0.55598413]
[1738146703929,0.31068199,102600.0,102590.0,0.94899802]
[1738146704237,0.18656482,102610.0,102600.0,0.195019]
[1738146704534,0.18656482,102610.0,102600.0,0.82845058]
[1738146704721,0.18656482,102610.0,102600.0,0.78062103]
[1738146707223,0.23439437,102610.0,102600.0,0.73279148]
[1738146707629,0.43039437,102610.0,102600.0,0.69112715]
[1738146707830,0.25531101,102610.0,102600.0,1.21636883]
[1738146708132,0.06031101,102610.0,102600.0,1.21636883]
[1738146708839,0.31358117,102600.0,102590.0,0.95248449]
[1738146709038,0.31358117,102600.0,102590.0,0.99515023]
[1738146709238,0.31358117,102600.0,102590.0,1.10740092]
[1738146710941,0.31558117,102600.0,102590.0,1.10740092]
[1738146711341,0.31558117,102600.0,102590.0,0.75873011]
[1738146711940,0.31558117,102600.0,102590.0,0.86293011]
[1738146712539,0.31558117,102600.0,102590.0,0.91075966]
[1738146712745,0.01148146,102610.0,102600.0,0.195019]
[1738146712933,0.10582303,102620.0,102610.0,0.195]
[1738146713242,0.10582303,102620.0,102610.0,0.79431871]
[1738146713440,0.01824479,102620.0,102610.0,0.74648916]
[1738146713638,0.01824479,102620.0,102610.0,0.85316832]
[1738146714439,0.00014613,102620.0,102610.0,0.81050871]
[1738146714739,0.00214613,102620.0,102610.0,0.83564272]
[1738146714939,0.00214613,102620.0,102610.0,0.85028272]
[1738146720438,0.00214613,102620.0,102610.0,0.88213267]
[1738146720945,0.00214613,102620.0,102610.0,0.92479075]
[1738146721341,0.00214613,102620.0,102610.0,0.8929408]
[1738146725951,0.00214613,102620.0,102610.0,0.85028272]
[1738146729755,0.00214613,102620.0,102610.0,0.89294074]
[1738146734261,0.00214613,102620.0,102610.0,0.85974074]
[1738146734448,0.03704613,102620.0,102610.0,0.84510074]
[1738146734761,0.03704613,102620.0,102610.0,0.23765802]
[1738146734953,0.10354613,102620.0,102610.0,0.23765802]
[1738146735553,0.10354613,102620.0,102610.0,0.59845802]
[1738146736562,0.10354613,102620.0,102610.0,0.64635076]
[1738146736959,0.1910033,102620.0,102610.0,0.64635076]
[1738146737763,0.1910033,102620.0,102610.0,0.67829088]
[1738146739566,0.1910033,102620.0,102610.0,0.64635076]
[1738146740564,0.1910033,102620.0,102610.0,0.6782647]
[1738146742757,0.0896033,102620.0,102610.0,0.72615744]
[1738146742957,0.0896033,102620.0,102610.0,0.89786293]
[1738146743159,0.0896033,102620.0,102610.0,0.88527019]
[1738146745069,0.0896033,102620.0,102610.0,0.92236906]
[1738146746863,0.0896033,102620.0,102610.0,0.94063126]
[1738146747464,0.0896033,102620.0,102610.0,1.23178498]
[1738146753368,0.0896033,102620.0,102610.0,1.27967772]
[1738146754878,0.0896033,102620.0,102610.0,1.65511772]
[1738146757778,0.0876033,102620.0,102610.0,1.65611772]
[1738146758473,0.00014613,102620.0,102610.0,1.65611772]
[1738146760274,0.08745717,102630.0,102620.0,0.194981]
[1738146760474,0.35397554,102640.0,102620.0,0.61614905]
[1738146760784,0.32087554,102640.0,102630.0,0.71874748]
[1738146760972,0.32087554,102640.0,102630.0,0.86691831]
[1738146761280,0.32087554,102640.0,102630.0,0.97256602]
[1738146761874,0.11978954,102640.0,102630.0,1.06999866]
[1738146762277,0.11978954,102640.0,102630.0,1.02210592]
[1738146763185,0.10059707,102640.0,102630.0,1.02210592]
[1738146763584,0.10059707,102640.0,102630.0,1.06999866]
[1738146764782,0.10059707,102640.0,102630.0,1.43079866]
[1738146768488,0.10059707,102640.0,102630.0,1.44569418]
[1738146769486,0.07110625,102640.0,102630.0,1.44569418]
[1738146772391,0.17544519,102650.0,102630.0,2.13455611]
[1738146772392,0.00014613,102650.0,102630.0,2.13455611]
[1738146772586,0.00014613,102650.0,102640.0,0.65152848]
[1738146772993,0.00014613,102650.0,102640.0,0.75595092]
[1738146773884,0.00014613,102650.0,102640.0,1.11675092]
[1738146774792,0.00014613,102650.0,102640.0,1.13139092]
[1738146776196,0.00014613,102650.0,102640.0,1.30536138]
[1738146778696,0.03404613,102650.0,102640.0,1.30536138]
[1738146780698,0.03404613,102650.0,102640.0,1.24282864]
[1738146780993,0.27686287,102650.0,102640.0,0.36891346]
[1738146781203,0.27686287,102650.0,102640.0,0.4168062]
[1738146781900,0.22897013,102650.0,102640.0,0.4168062]
[1738146782593,0.03404613,102650.0,102640.0,0.4168062]
[1738146783091,0.39484613,102650.0,102640.0,0.4168062]
[1738146783987,0.03404613,102650.0,102640.0,0.24283574]
[1738146784395,0.03404613,102650.0,102640.0,0.28548461]
[1738146784598,0.39484613,102650.0,102640.0,0.24283574]
[1738146785494,0.03404613,102650.0,102640.0,0.28548381]
[1738146785695,0.03404613,102650.0,102640.0,0.64628381]
[1738146785899,0.03404613,102650.0,102640.0,0.28548381]
[1738146786100,0.39484613,102650.0,102640.0,0.28548381]
[1738146786598,0.03404613,102650.0,102640.0,0.28548381]
[1738146787601,0.39484613,102650.0,102640.0,0.28548381]
[1738146788102,0.03404613,102650.0,102640.0,0.28548381]
[1738146788703,0.03404613,102650.0,102640.0,0.64628381]
[1738146788904,0.03404613,102650.0,102640.0,0.28548381]
[1738146789299,0.39484613,102650.0,102640.0,0.28548381]
[1738146789800,0.03404613,102650.0,102640.0,0.28548381]
[1738146790001,0.03404613,102650.0,102640.0,0.64628381]
[1738146790404,0.03404613,102650.0,102640.0,0.28548381]
[1738146790606,0.39484613,102650.0,102640.0,0.45945427]
[1738146791303,0.44273887,102650.0,102640.0,0.41156153]
[1738146791606,0.63766287,102650.0,102640.0,0.41156153]
[1738146793508,0.63766287,102650.0,102640.0,0.45945427]
[1738146793703,0.58977013,102650.0,102640.0,0.45945427]
[1738146794104,0.70633224,102650.0,102640.0,0.45945427]
[1738146794302,0.70633224,102650.0,102640.0,0.41156153]
[1738146795011,0.70633224,102650.0,102640.0,0.36891346]
[1738146795205,0.75422498,102650.0,102640.0,0.4168062]
[1738146797402,0.75422498,102650.0,102640.0,0.45945603]
[1738146797605,0.75422498,102650.0,102640.0,0.41156329]
[1738146801007,0.75422498,102650.0,102640.0,0.4435287]
[1738146803515,0.75422498,102650.0,102640.0,0.20593587]
[1738146805019,0.75422498,102650.0,102640.0,0.17397046]
[1738146805516,0.70525083,102650.0,102630.0,0.64877682]
[1738146805820,0.31223574,102640.0,102630.0,0.69142899]
[1738146806317,0.0694,102640.0,102630.0,1.05222899]
[1738146808223,0.264343,102640.0,102630.0,0.69142899]
[1738146808518,0.31223574,102640.0,102630.0,0.69142899]
[1738146809020,0.264343,102640.0,102630.0,0.69142899]
[1738146809213,0.264343,102640.0,102630.0,1.05222899]
[1738146810117,0.264343,102640.0,102630.0,0.69142899]
[1738146811118,0.27967703,102640.0,102630.0,0.69142899]
[1738146811420,0.39623914,102640.0,102630.0,1.05383899]
[1738146814020,0.13189614,102640.0,102630.0,1.05383899]
[1738146814211,0.13189614,102640.0,102630.0,1.15583899]
[1738146815326,0.13189614,102640.0,102630.0,0.61945853]
[1738146816220,0.13189614,102640.0,102630.0,0.98025853]
[1738146818819,0.01533403,102640.0,102630.0,0.98025853]
[1738146819019,0.53938383,102650.0,102630.0,0.78530553]
[1738146819221,0.53938383,102650.0,102640.0,0.194943]
[1738146819526,0.90018383,102650.0,102640.0,0.194943]
[1738146819719,0.53938383,102650.0,102640.0,0.194943]
[1738146819922,0.53938383,102650.0,102640.0,0.60363574]
[1738146820326,0.53938383,102650.0,102640.0,0.555743]
[1738146821530,0.34445083,102650.0,102640.0,0.555743]
[1738146822023,0.34445083,102650.0,102640.0,0.96251185]
[1738146822221,0.19850098,102650.0,102640.0,0.96251185]
[1738146823128,0.19850098,102650.0,102640.0,0.60171185]
[1738146823431,0.19850098,102650.0,102640.0,0.96251185]
[1738146823624,0.21266748,102650.0,102640.0,0.96251185]
[1738146824423,0.16477474,102650.0,102640.0,1.01040459]
[1738146824626,0.13087474,102650.0,102640.0,1.05829733]
[1738146825530,0.13087474,102650.0,102640.0,1.01040459]
[1738146825729,0.53956748,102650.0,102640.0,0.60171185]
[1738146826028,0.73449148,102650.0,102640.0,0.64436187]
[1738146826328,0.77019148,102650.0,102640.0,0.64436187]
[1738146829338,0.77019148,102650.0,102640.0,0.60171185]
[1738146830026,0.91614133,102650.0,102640.0,0.36975123]
[1738146833436,0.79957922,102650.0,102640.0,0.36975123]
[1738146838438,1.16019877,102640.0,102630.0,0.28069862]
[1738146838639,1.16019877,102640.0,102630.0,0.51831314]
[1738146838640,1.24289151,102640.0,102630.0,0.51831314]
[1738146839842,1.43783451,102640.0,102630.0,0.51831314]
[1738146840641,1.55472032,102640.0,102630.0,0.51831314]
[1738146844843,1.5742059,102640.0,102630.0,0.51831314]
[1738146848245,1.33137016,102640.0,102630.0,0.56620588]
[1738146848443,1.29657016,102640.0,102630.0,0.9617036]
[1738146848639,1.29657016,102640.0,102630.0,1.0011036]
[1738146849140,1.29657016,102640.0,102630.0,1.03823026]
[1738146849647,1.29657016,102640.0,102630.0,1.14857709]
[1738146851240,1.29657016,102640.0,102630.0,1.22842479]
[1738146851648,1.17968435,102640.0,102630.0,1.63677901]
[1738146852034,1.17968435,102640.0,102630.0,1.73421165]
[1738146854742,1.17968435,102640.0,102630.0,1.70095891]
[1738146854942,1.17968435,102640.0,102630.0,1.60352627]
[1738146855150,1.17968435,102640.0,102630.0,1.58888627]
[1738146855448,1.17968435,102640.0,102630.0,1.47853944]
[1738146856450,1.17968435,102640.0,102630.0,1.15543076]
[1738146857250,1.17968435,102640.0,102630.0,1.18733669]
[1738146858046,1.17968435,102640.0,102630.0,1.14793669]
[1738146858547,1.22757709,102640.0,102630.0,1.14793669]
[1738146858853,1.17968435,102640.0,102630.0,0.99446651]
[1738146859047,1.21858435,102640.0,102630.0,0.99446651]
[1738146861052,1.21858435,102640.0,102630.0,0.88521034]
[1738146861243,1.25768435,102640.0,102630.0,0.88521034]
[1738146861844,1.27716993,102640.0,102630.0,0.88521034]
[1738146862350,1.27716993,102640.0,102630.0,0.95976651]
[1738146867056,0.20043226,102630.0,102620.0,1.32930353]
[1738146867355,0.20043226,102630.0,102620.0,1.56903773]
[1738146869654,0.20043226,102630.0,102620.0,1.92983773]
[1738146869853,0.20043226,102630.0,102620.0,1.93083773]
[1738146870043,0.20043226,102630.0,102620.0,2.07617261]
[1738146870363,0.03897116,102640.0,102630.0,0.194962]
[1738146870547,0.03897116,102640.0,102630.0,0.72835208]
[1738146870747,0.02183375,102640.0,102630.0,0.84016045]
[1738146870947,7.5e-07,102640.0,102630.0,0.93760259]
[1738146872949,7.5e-07,102640.0,102630.0,0.91811512]
[1738146873150,7.5e-07,102640.0,102630.0,1.26727624]
[1738146874653,7.5e-07,102640.0,102630.0,1.33197202]
[1738146877057,7.5e-07,102640.0,102630.0,1.37461505]
[1738146878958,7.5e-07,102640.0,102630.0,1.38755452]
[1738146879266,8.8e-07,102650.0,102630.0,1.21207999]
[1738146879459,8.8e-07,102650.0,102640.0,0.62866363]
[1738146879661,8.8e-07,102650.0,102640.0,0.88421126]
[1738146879863,8.8e-07,102650.0,102640.0,0.99680943]
[1738146880170,8.8e-07,102650.0,102640.0,1.09424207]
[1738146885065,8.8e-07,102650.0,102640.0,1.73394023]
[1738146888867,8.8e-07,102650.0,102640.0,1.38477911]
[1738146892577,8.8e-07,102650.0,102640.0,1.30637911]
[1738146894880,8.8e-07,102650.0,102640.0,1.32101911]
[1738146896681,8.8e-07,102650.0,102640.0,1.34380056]
[1738146900380,8.8e-07,102650.0,102640.0,1.69296168]
[1738146904489,8.8e-07,102650.0,102640.0,1.40242464]
[1738146905195,8.8e-07,102650.0,102640.0,1.25714096]
[1738146905488,0.04080088,102650.0,102640.0,1.20928992]
[1738146905688,0.04080088,102650.0,102640.0,1.25714096]
[1738146906083,0.04080088,102650.0,102640.0,0.79894096]
[1738146906784,0.04080088,102650.0,102640.0,0.67170279]
[1738146907189,0.08865192,102650.0,102640.0,0.62385175]
[1738146907691,0.08865192,102650.0,102640.0,0.67170279]
[1738146907692,0.04080088,102650.0,102640.0,0.67170279]
[1738146908095,0.08865192,102650.0,102640.0,0.62385175]
[1738146909097,0.44945192,102650.0,102640.0,0.62385175]
[1738146909291,0.44945192,102650.0,102640.0,0.58674715]
[1738146909797,0.44945192,102650.0,102640.0,0.54410412]
[1738146911392,0.44945192,102650.0,102640.0,0.59195516]
[1738146911695,0.08865192,102650.0,102640.0,0.59195516]
[1738146911890,0.04080088,102650.0,102640.0,0.59195516]
[1738146912289,0.05284419,102650.0,102640.0,0.59195516]
[1738146912896,0.10069523,102650.0,102640.0,0.59195516]
[1738146913196,0.30505961,102650.0,102640.0,0.24279404]
[1738146914399,0.25720857,102650.0,102640.0,0.29064508]
[1738146916294,0.25720857,102650.0,102640.0,0.33329314]
[1738146916998,0.14032276,102650.0,102640.0,0.33329314]
[1738146921714,0.12827945,102650.0,102640.0,0.69409314]
[1738146921905,0.08747945,102650.0,102640.0,0.74194418]
[1738146922098,0.08747945,102650.0,102640.0,1.09842223]
[1738146922099,4.5e-07,102650.0,102640.0,1.09842223]
[1738146924800,0.00014613,102660.0,102650.0,0.194924]
[1738146925001,0.00014613,102660.0,102650.0,0.65142608]
[1738146925308,0.00014613,102660.0,102650.0,0.75988474]
[1738146926108,0.00014613,102660.0,102650.0,0.76088474]
[1738146927102,0.00014613,102660.0,102650.0,0.7130337]
[1738146928101,0.00014613,102660.0,102650.0,0.76088474]
[1738146928417,0.00014613,102660.0,102650.0,0.8035328]
[1738146932603,0.00014613,102660.0,102650.0,1.03583622]
[1738146933503,0.00014613,102660.0,102650.0,0.99318816]
[1738146934204,0.00014613,102660.0,102650.0,1.03583622]
[1738146934404,0.00014613,102660.0,102650.0,0.99318816]
[1738146934906,0.00014613,102660.0,102650.0,1.00782816]
[1738146939408,0.00014613,102660.0,102650.0,1.14788988]
[1738146939603,1.3e-07,102660.0,102650.0,1.14788988]
[1738146939806,1.3e-07,102660.0,102650.0,1.18491917]
[1738146940802,0.22120424,102680.0,102670.0,0.194886]
[1738146941008,0.22120424,102680.0,102670.0,0.24273704]
[1738146943006,0.23301071,102680.0,102670.0,0.24273704]
[1738146944312,0.28086175,102680.0,102670.0,0.194886]
[1738146945206,0.24191403,102680.0,102670.0,0.194886]
[1738146945814,0.12502822,102680.0,102670.0,0.194886]
[1738146946314,0.07717718,102680.0,102670.0,0.194886]
[1738146946815,0.07717718,102680.0,102670.0,0.24273704]
[1738146947506,0.07717718,102680.0,102670.0,0.194886]
[1738146949016,0.11497718,102680.0,102670.0,0.194886]
[1738146949218,0.11497718,102680.0,102670.0,0.23743694]
[1738146950418,0.11497718,102680.0,102670.0,0.194886]
[1738146951727,0.47577718,102680.0,102670.0,0.194886]
[1738146953616,1.335064,102670.0,102660.0,0.97025559]
[1738146953816,1.219637,102670.0,102660.0,1.08610653]
[1738146954119,0.26283566,102690.0,102680.0,0.194867]
[1738146954419,0.26283566,102690.0,102680.0,0.59821794]
[1738146954621,0.26283566,102690.0,102680.0,0.67101794]
[1738146954816,0.26283566,102690.0,102680.0,0.76672002]
[1738146955920,0.26283566,102690.0,102680.0,0.79908223]
[1738146957026,0.26283566,102690.0,102680.0,0.83614047]
[1738146957921,0.26283566,102690.0,102680.0,0.83714047]
[1738146958225,0.24975152,102690.0,102680.0,0.83714047]
[1738146958420,0.24975152,102690.0,102680.0,0.87304047]
[1738146961232,0.7389589,102700.0,102690.0,0.194848]
[1738146961421,0.7389589,102700.0,102690.0,0.31761219]
[1738146961623,0.1459279,102700.0,102690.0,0.67841219]
[1738146961817,0.1349,102700.0,102690.0,0.68371229]
[1738146962024,0.1,102700.0,102690.0,0.68371229]
[1738146963631,0.1,102700.0,102690.0,0.65135008]
[1738146964130,0.1,102700.0,102690.0,0.60349904]
[1738146965036,0.05117058,102700.0,102690.0,0.60349904]
[1738146965336,0.05117058,102700.0,102690.0,0.65135008]
[1738146967331,0.0154253,102700.0,102690.0,0.65135008]
[1738146967629,0.0154253,102700.0,102690.0,0.72633496]
[1738146970132,0.0154253,102700.0,102690.0,0.72733496]
[1738146970435,0.0154253,102700.0,102690.0,0.83342208]
[1738146970629,0.0154253,102700.0,102690.0,0.9307978]
[1738146971030,0.0362,102720.0,102690.0,0.78380084]
[1738146971248,0.0362,102720.0,102710.0,0.65131208]
[1738146971534,0.15358581,102730.0,102720.0,0.194791]
[1738146971834,0.15358581,102730.0,102720.0,0.29049308]
[1738146972032,0.15358581,102730.0,102720.0,0.24264204]
[1738146972238,0.51438581,102730.0,102720.0,0.24264204]
[1738146972939,0.70915781,102730.0,102720.0,0.24264204]
[1738146973533,0.592272,102730.0,102720.0,0.24264204]
[1738146976141,0.60363409,102730.0,102720.0,0.24264204]
[1738146976527,0.60363409,102730.0,102720.0,0.29049308]
[1738146976931,0.60363409,102730.0,102720.0,0.32659308]
[1738146977536,0.01136209,102730.0,102720.0,0.68739308]
[1738146977740,0.592561,102740.0,102720.0,0.56072889]
[1738146978032,0.592561,102740.0,102730.0,0.24262304]
[1738146978336,0.64041204,102740.0,102730.0,0.24262304]
[1738146978545,0.64041204,102740.0,102730.0,0.194772]
[1738146978841,0.64041204,102740.0,102730.0,0.24262304]
[1738146980742,0.64041204,102740.0,102730.0,0.24362304]
[1738146981757,0.65135853,102740.0,102730.0,0.24362304]
[1738146981951,0.65135853,102740.0,102730.0,0.195772]
[1738146982836,0.60350749,102740.0,102730.0,0.24362304]
[1738146983243,0.60350749,102740.0,102730.0,0.2758816]
[1738146984246,0.60350749,102740.0,102730.0,0.2748816]
[1738146984447,0.60350749,102740.0,102730.0,0.24262304]
[1738146985950,0.65135853,102740.0,102730.0,0.194772]
[1738146986653,0.65135853,102740.0,102730.0,0.24262304]
[1738146986855,0.65135853,102740.0,102730.0,0.194772]
[1738146987654,0.65135853,102740.0,102730.0,0.24262304]
[1738146989262,0.60350749,102740.0,102730.0,0.24262304]
[1738146989650,0.65135853,102740.0,102730.0,0.24262304]
[1738146989952,0.50444857,102740.0,102720.0,0.09669317]
[1738146990254,0.64042304,102730.0,102720.0,0.27502925]
[1738146990454,0.592572,102730.0,102720.0,0.27502925]
[1738146990844,0.592572,102730.0,102720.0,0.32288029]
[1738146991044,0.592572,102730.0,102720.0,0.36108029]
[1738146991451,0.592572,102730.0,102720.0,0.32882921]
[1738146992551,0.555572,102730.0,102720.0,0.32882921]
[1738146994160,0.86594049,102740.0,102730.0,0.194772]
[1738146994452,0.86594049,102740.0,102730.0,0.24262304]
[1738146996660,0.7203943,102740.0,102730.0,0.24262304]
[1738146997955,0.7203943,102740.0,102730.0,0.27487412]
[1738146998157,0.76824534,102740.0,102730.0,0.27487412]
[1738146998552,0.76824534,102740.0,102730.0,0.22702308]
[1738146999255,0.76824534,102740.0,102730.0,0.27487412]
[1738146999556,0.7203943,102740.0,102730.0,0.27487412]
[1738146999753,0.76824534,102740.0,102730.0,0.24262304]
[1738146999951,0.7203943,102740.0,102730.0,0.24262304]
[1738147001458,0.7203943,102740.0,102730.0,0.24246935]
[1738147002362,0.74905468,102740.0,102730.0,0.24246935]
[1738147005565,0.79690572,102740.0,102730.0,0.19461831]
[1738147009260,0.74905468,102740.0,102730.0,0.19461831]
[1738147009568,0.74905468,102740.0,102730.0,0.24246935]
[1738147010466,0.74905468,102740.0,102730.0,0.19461831]
[1738147011069,0.79690572,102740.0,102730.0,0.19461831]
[1738147014170,0.65135953,102740.0,102730.0,0.19461831]
[1738147016371,0.65135953,102740.0,102730.0,0.24246935]
[1738147016669,0.60350849,102740.0,102730.0,0.24246935]
[1738147016865,0.65135953,102740.0,102730.0,0.24246935]
[1738147017369,0.79690572,102740.0,102730.0,0.24246935]
[1738147019969,0.79690572,102740.0,102730.0,0.31743064]